Cogmind - Beta 17.1 --- EXPLORER MODE // 2026.09.14 @ 12:07:44 Player: Beosis Result: Destroyed by RC-A8T(R) with Subdweller Machine Gun Performance ------------- Evolutions (0) 0 Regions Visited (2) 400 Robots Destroyed (20) 100 Value Destroyed (331) 331 Prototype IDs (2) 40 Alien Tech Used (0) 0 Bonus (0) 0 TOTAL SCORE: 871 Bonus ------- None Cogmind --------- Core Integrity 0/250 Matter 261/300 Energy 100/100 System Corruption 1% Temperature Cool (0) Movement Walking (120) Location -10/Subcaves Parts ------- > --- POWER (1) -------- (None) > --- PROPULSION (2) --- Aluminum Leg Aluminum Leg > --- UTILITY (3) ------ Medium Storage Unit Targeting Computer Core Shielding > --- WEAPON (2) ------- (None) > --- INVENTORY (10) --- Heat Sink Terrain Scanner Light Armor Plating Scrap Shield Fragment (47) Peak State ------------ > --- POWER ------------ Ion Engine > --- PROPULSION ------- Aluminum Leg Aluminum Leg > --- UTILITY ---------- Medium Storage Unit Targeting Computer Core Shielding > --- WEAPON ----------- EM Pulse Gun Assault Rifle > --- INVENTORY -------- Light Ion Engine Light Armor Plating [Rating: 8] Favorites ----------- Power Ion Engine Engine Ion Engine Propulsion Aluminum Leg Leg Aluminum Leg Utility Core Shielding Storage Medium Storage Unit Processor Targeting Computer Protection Core Shielding Weapon Assault Rifle Energy Gun EM Pulse Gun Ballistic Gun Assault Rifle Special Weapon Mining Laser Build | -11 -10 -10 ------- Run | Yrd Mat Sub Slots Evolved 1 | . 1 . Power . | . . . Propulsion . | . . . Utility 1 | . 1 . Weapon . | . . . Parts Attached 13 | 7 3 3 Power 2 | 1 . 1 Engine 2 | 1 . 1 Core . | . . . Reactor . | . . . Propulsion 4 | 2 . 2 Treads . | . . . Leg 4 | 2 . 2 Wheel . | . . . Hover . | . . . Flight . | . . . Utility 3 | 2 1 . Device . | . . . Storage 1 | . 1 . Processor 1 | 1 . . Hackware . | . . . Protection 1 | 1 . . Artifact . | . . . Weapon 4 | 2 2 . Energy Gun 2 | 1 1 . Energy Cannon . | . . . Ballistic Gun 1 | 1 . . Ballistic Cannon . | . . . Launcher . | . . . Special Weapon 1 | . 1 . Impact Weapon . | . . . Slashing Weapon . | . . . Piercing Weapon . | . . . Special Melee Weapon . | . . . Unidentified Prototypes . | . . . Parts Lost 8 | . . 8 Power 2 | . . 2 Propulsion 2 | . . 2 Utility . | . . . Weapon 4 | . . 4 Highest Loss Streak 6 | . . 6 To Critical Strikes . | . . . Average Backups 4 | 1 5 5 Power . | . 1 . Propulsion 1 | . 1 1 Utility 2 | . 2 3 Weapon . | . . . Tool/Special . | . . . Unused Backups 4 | . 1 3 Power 1 | . 1 . Propulsion . | . . . Utility 3 | . . 3 Weapon . | . . . Tool/Special . | . . . Average Slot Usage (%) 96 | . 100 88 Engine 10 | . 12 8 Leg 24 | . 25 22 Storage 12 | . 12 12 Processor 12 | . 12 12 Protection 12 | . 12 12 Energy Gun 10 | . 11 6 Ballistic Gun 10 | . 12 8 Special Weapon 1 | . . 2 Peak Build Rating 8 | 7 8 8 Average Rating 7 | 5 8 7 On Entrance 5 | . 7 8 Avg Prop Armor Cover (%) . | . . . Naked Turns . | . . . Heaviest Build 20 | 10 20 20 Greatest Support 20 | 20 20 20 Greatest Overweight (x) 3 | 2 . 3 Average Overweight (x) . | . . . Largest Inventory Capacity 10 | 5 10 10 Average Capacity 9 | 5 10 10 Most Carried 8 | 3 8 8 Average Carried 5 | 1 5 5 Final Capacity 10 | 5 10 10 Final Carried 8 | 3 8 4 Class Distribution -------------------- 100% | Hacker-Mutant Dominant Class ---------------- Hacker-Mutant | -10/Materials Hacker-Mutant | -10/Subcaves Resources | -11 -10 -10 ----------- Run | Yrd Mat Sub Matter Collected 441 | 123 259 59 Remotely . | . . . Salvage Created 945 | . 889 56 Parts 37 | . 33 4 Haulers Intercepted 2 | . 2 . Recyclers Shooed 2 | . 2 . Parts Field Recycled . | . . . Retrieved Matter . | . . . Parts Self-Destructed . | . . . Prevented . | . . . Parts Restored . | . . . Kills | -11 -10 -10 ------- Run | Yrd Mat Sub Combat Hostiles Destroyed 9 | . 7 2 Melee 1 | . . 1 Guns 8 | . 7 1 Classes Destroyed 8 | . 7 1 Worker 1 | . 1 . Builder 1 | . 1 . Hauler 2 | . 2 . Recycler 6 | . 6 . Watcher 1 | . 1 . Swarmer 3 | . 3 . Grunt 4 | . 4 . Subdweller 2 | . . 2 Best Kill Streak 5 | . 5 1 Combat Bots Only 2 | . 2 1 Max Kills in Single Turn 2 | . 2 1 Gunslinging 1 | . 1 . Exploded . | . . . Melee 1 | . . 1 Uniques/NPCs Destroyed . | . . . Combat | -11 -10 -10 -------- Run | Yrd Mat Sub Hostile Shots Fired 101 | . 25 76 Missed 21 | . 4 17 Hits 80 | . 21 59 Projectile 80 | . 21 59 Critical Strikes 1 | . 1 . Damage Taken 931 | . 155 776 Core 250 | . 3 247 Absorbed by Shields . | . . . Redirected to Shielding 48 | . . 48 Ignored by Resistances 565 | . 102 463 Core Remaining (%) 100 | 100 . . Volleys Fired 54 | . 35 19 Largest 2 | . 2 2 Hottest 120 | . 120 100 Shots Fired 96 | . 69 27 Gun 90 | . 66 24 Cannon . | . . . Launcher . | . . . Special 6 | . 3 3 Kinetic 50 | . 34 16 Thermal 6 | . 3 3 Explosive . | . . . Electromagnetic 40 | . 32 8 Robot Hit Streak 33 | . 31 33 Robot Miss Streak 1 | . 1 1 Penetration Max . | . . . Secondary Targets 1 | . 1 . Max Gunslinging Chain 1 | . 1 . Shots Hit Robots 79 | . 54 25 Core Hits 30 | . 25 5 Critical Kills . | . . . Critical Parts Destroyed . | . . . Critical Strikes . | . . . Melee Attacks . | . . . Impact . | . . . Slashing . | . . . Piercing . | . . . Sneak Attacks . | . . . Combat Hostiles . | . . . Follow-up Attacks . | . . . Damage Inflicted 997 | . 824 173 Guns 835 | . 717 118 Cannons . | . . . Explosions 98 | . 98 . Melee . | . . . Ramming 16 | . 9 7 Kinetic 367 | . 303 64 Thermal 146 | . 98 48 Explosive . | . . . Electromagnetic 468 | . 414 54 Impact . | . . . Slashing . | . . . Piercing . | . . . Highest Corruption 1 | . 1 1 Average Corruption 1 | . 1 1 Corruption Purged . | . . . Corruption Blocked . | . . . Effects 6 | . 2 4 Message Errors 2 | . 1 1 Matter Fused 1 | . . 1 Heat Flow Errors 2 | . 1 1 Data Loss (major) 1 | . . 1 Overload Shots . | . . . Overflow Damage 4 | . 4 . Projectiles . | . . . Explosions 4 | . 4 . Melee . | . . . Knockbacks . | . . . Impact . | . . . Kinetic . | . . . Secondary . | . . . Self-Inflicted Damage 22 | . 21 1 Shots 1 | . 1 . Rammed 2 | . . 2 Targets Rammed 7 | . 3 4 Kicked 5 | . 3 2 Crushed . | . . . Highest Temperature 207 | . 207 185 Average Temperature 86 | . 84 109 Received Heat Transfer 273 | . 117 156 Siege Activations . | . . . Martial Activations . | . . . Shielding Activations . | . . . Robots Disrupted . | . . . Combat Hostiles . | . . . Robots Corrupted . | . . . Combat Hostiles . | . . . Parts Fried 2 | . 1 1 Impact Corruptions . | . . . Robots Melted . | . . . Combat Hostiles . | . . . Parts Melted . | . . . Heat Transferred 200 | . 100 100 Parts Sabotaged . | . . . Parts Stolen . | . . . Parts Stripped . | . . . Power Chain Reactions 2 | . 2 . Alert | -11 -10 -10 ------- Run | Yrd Mat Sub Maximum Alert Level . | . . . Low Security (%) 100 | 100 100 . Level 1 . | . . . Level 2 . | . . . Level 3 . | . . . Level 4 . | . . . Level 5 . | . . . High Security . | . . . Max Security . | . . . Peak Influence 70 | . 70 . Initial . | . . . Average 14 | . 16 . Influence Increases 272 | . 272 . Destroy 0b10 Robot/C 140 | . 140 . Destroy 0b10 Robot/NC 55 | . 55 . Destroy Leader 36 | . 36 . Successful Hack 3 | . 3 . Disable Machine 4 | . 4 . Destroy Structure 4 | . 4 . Lose Combat Pursuer 30 | . 30 . Influence Decreases 272 | . 270 2 Entered New Map 2 | . . 2 Time Decay 270 | . 270 . Squads Dispatched . | . . . Investigation . | . . . Extermination . | . . . Reinforcement . | . . . Assault . | . . . Garrison . | . . . Intercept . | . . . Searches Triggered . | . . . Construction Impeded . | . . . Haulers Reinforced . | . . . Active Scanning Responses . | . . . Cargo Convoy Interrupts . | . . . Stealth | -11 -10 -10 --------- Run | Yrd Mat Sub Distress Signals 1 | . 1 . Communications Jammed . | . . . Distress Signals . | . . . Times Spotted 15 | . 11 4 Peak Tracking Total 2 | . 2 2 Tactical Retreats 2 | . 2 . Traps | -11 -10 -10 ------- Run | Yrd Mat Sub Traps Triggered 1 | . 1 . Indirectly . | . . . Trap Hack Attempts . | . . . Triggered . | . . . Disarmed . | . . . Reprogrammed . | . . . Reused . | . . . Traps Extracted . | . . . Installed . | . . . Triggered . | . . . Machines | -11 -10 -10 ---------- Run | Yrd Mat Sub Machines Disabled 1 | . 1 . Max in Single Turn 1 | . 1 . Machines Repaired . | . . . Machines Dismantled . | . . . Machines Sabotaged . | . . . Overloaded Fab Kills . | . . . Hacking | -11 -10 -10 --------- Run | Yrd Mat Sub Machines Accessed 4 | . 4 . Terminals 4 | . 4 . Fabricators . | . . . Repair Stations . | . . . Recycling Units . | . . . Scanalyzers . | . . . Garrison Access . | . . . Total Hacks 8 | . 8 . Successful 6 | . 6 . Failed 2 | . 2 . Catastrophic . | . . . Database Lockouts . | . . . Manual 2 | . 2 . Terminals 8 | . 8 . Fabricators . | . . . Repair Stations . | . . . Recycling Units . | . . . Scanalyzers . | . . . Garrison Access . | . . . Terminal Hacks 6 | . 6 . Prototype ID Bank 1 | . 1 . Alert Level 1 | . 1 . Locate Traps 1 | . 1 . Dispatch Records 2 | . 2 . Zone Layout 1 | . 1 . Fabricator Hacks . | . . . Repair Station Hacks . | . . . Recycling Unit Hacks . | . . . Scanalyzer . | . . . Garrison Access Hacks . | . . . Unauthorized Hacks . | . . . Terminals . | . . . Fabricators . | . . . Repair Stations . | . . . Recycling Units . | . . . Scanalyzers . | . . . Garrison Access . | . . . Data Cores Recovered . | . . . Used . | . . . Hacking Detections 1 | . 1 . Full Trace Events . | . . . Feedback Events . | . . . Feedback Blocked . | . . . Robot Schematics Acquired . | . . . Robots Built . | . . . Authchips . | . . . Time . | . . . Total Robot Build Rating . | . . . Part Schematics Acquired . | . . . Parts Built . | . . . Authchips . | . . . Time . | . . . Total Part Build Rating . | . . . Part Studies Acquired . | . . . Parts Repaired . | . . . Time . | . . . Parts Recycled . | . . . Recycled Matter . | . . . Retrieved Matter . | . . . Retrieved Components . | . . . Parts Scanalyzed . | . . . Part Schematics Acquired . | . . . Parts Damaged . | . . . Bothacking | -11 -10 -10 ------------ Run | Yrd Mat Sub Used RIF Installer . | . . . Robots Hacked . | . . . Non-combat . | . . . Combat . | . . . Robot Hacks Applied . | . . . Relay Couplers Released . | . . . Fabnet Peak Effective % . | . . . Robots Rewired . | . . . Allies Hacked . | . . . Hacks Repelled . | . . . Allies | -11 -10 -10 -------- Run | Yrd Mat Sub Total Allies . | . . . Largest Group . | . . . Highest-Rated Group . | . . . Highest-Rated Ally . | . . . Total Orders . | . . . Ally Attacks . | . . . Total Damage . | . . . Kills . | . . . Allies Corrupted . | . . . Allies Melted . | . . . Intel | -11 -10 -10 ------- Run | Yrd Mat Sub Active Infowar (turns) . | . . . Robot Analysis Total . | . . . Derelict Logs Recovered . | . . . Drone Launches . | . . . Drone Recoveries . | . . . Exploration | -11 -10 -10 ------------- Run | Yrd Mat Sub Turns Passed 1036 | 77 635 324 Spaces Moved 671 | 56 414 201 Core 14 | 13 . 1 Treads . | . . . Legs 657 | 43 414 200 Wheels . | . . . Hover . | . . . Flight . | . . . Fastest Speed 50 | 50 120 120 Average Speed 120 | 109 120 123 Slowest Speed 200 | 150 120 200 Overloaded Moves . | . . . Propulsion Burnouts . | . . . Robots Hopped . | . . . Potential Cave-ins . | . . . Cave-ins Triggered . | . . . Exploration Rate (%) 29 | 4 69 16 Regions Visited 2 Branch Regions 1 Pre-discovered Areas . | . . . Known Exits Taken 2 | 1 1 . Unknown Exits Taken . | . . . Scrap Searched . | . . . Spaces Dug 3 | . 3 . Terrain Destroyed 3 | . 3 . Melee . | . . . Projectile 3 | . 3 . AOE . | . . . Terrain Rammed . | . . . Walls Destroyed . | . . . Machines Disabled . | . . . Actions | -11 -10 -10 --------- Run | Yrd Mat Sub Total 787 | 72 476 239 Wait 20 | . 14 6 Move 669 | 55 413 201 Hop . | . . . Pick Up 18 | 10 7 1 Fast Attach . | . . . Attach 13 | 7 1 5 Detach . | . . . Swap 5 | . 2 3 Drop 1 | . 1 . Fire 54 | . 35 19 Melee . | . . . Ram 2 | . . 2 Kick 5 | . 3 2 Crush . | . . . Escape Stasis . | . . . Rewire . | . . . Trap . | . . . Miscellaneous . | . . . Route ------- -11/Scrapyard -10/Materials (discovered 3 exits: *Mat / *Min / *Sub) -10/Subcaves History --------- Turn | Location | Event 21 | -11/Scrapyard | Identified exit to Materials 21 | -11/Scrapyard | Discovered exit to Materials (range 15) 78 | -11/Scrapyard | Entered Materials 78 | -10/Materials | Evolved 1 slot: Utility x1 150 | -10/Materials | Identified exit to Mines 150 | -10/Materials | Discovered exit to Mines (range 16) 308 | -10/Materials | Build established: Hacker-Mutant 475 | -10/Materials | Identified exit to Materials 475 | -10/Materials | Discovered exit to Materials (range 7) 708 | -10/Materials | Identified exit to Subcaves 708 | -10/Materials | Discovered exit to Subcaves (range 3) 713 | -10/Materials | Entered Subcaves 978 | -10/Subcaves | Core integrity fell below 50% 988 | -10/Subcaves | Core integrity fell below 20% 1012 | -10/Subcaves | Lost 6 parts (1p2n3w) 1037 | -10/Subcaves | Destroyed by RC-A8T(R) with Subdweller Machine Gun Last Messages --------------- Acquired 3 matter. Subatomizers dissect the Disposable Heat Sink. System corrupted: Substantial component data lost. CZ-CJ1(z): "She is not going to be happy we haven't found any suitable candidates yet." System corrupted: Matter fused (-7). EM Pulse Gun destroyed. System corrupted: Heat flow error (+215). Ion Engine destroyed. Assault Rifle destroyed. Aluminum Leg destroyed. OHO2>44P4FGZHYPFDN5>Q9V Aluminum Leg destroyed. Mining Laser destroyed. Slammed into 19-2JV(R). 19-2JV(R) destroyed. Acquired 8 matter. Acquired Scrap Shield Fragment. Map ----- +----------------------------------------------------+ | | | | | | | ?????????????????????????????????????????????????? | | ?????????????????????????????????????????????????? | | ?????????????????????????????????????????????????? | | ?????????????????????????????????????????????????? | | ?????????????????????????????????????????????????? | | ?????????????????????????????????????????????????? | | ?????????????????????????????????????????????????? | | ?????????????????????????????????????????????????? | | ?????????????????????????????????????????????????? | | ?????????????????????????????????????????????????? | | ?????????????????????????????????????????????????? | | ?????????????????????????????????????????????????? | | ?????????????????????????????????????????????????? | | ?????????????????????????????????????????????????? | | ???????????????????????????????????????????####### | | ##????????????????####?????####???????????## ## | | ##???????????????# ##???# ##??????????# " " | | #???????????????# #?# #??????????# " | | ##??????????????? ### ##??######## """" | | ########?#####???# ## #### # """" | | ##" =&### ####?# ## R """" | | & !%&& #?# ## """""" | | # &&&*= ##?# @ ## #####"""""# | | ## # "##! ### #### ##???# # | | ?## ######## #### #### #???# | | ??####????## ##??######## ##???## | | ??????????# #??????# # #?????# | | ??????????### #??????# ## ##???## # | | ????????????## #####?## ## ##### ## | | ??????????###### ### ## #? | | ??????????# ## #### ## ## | | ??????????# #??## ### | | ????????### #???####?## ### | | ????????# ###???????## ##???? | | ????????# #????????###??????? | | ????????## #?????????????????? | | ?????????# ## ####### ## ##?????????????????? | | ????????## #####?????# #####??????????????????? | | ????????# ##?????#### ##?????????????????????? | | ????????# #????## ###???????????????????? | | ????????## #????# #???????????????????? | | ?????????# #????## #### #???????????????????? | | ?????????# ##?????####### ##???????????????????? | | ????????# #???????## ## ##???????????????????? | | ????????## #??????## #???????????????????? | | ?????????####?????## #???????????????????? | | ??????????????##### #???????????????????? | +----------------------------------------------------+ Best States ------------- Heat Dissipation 25 Energy Generation 10 Energy Capacity 250 Matter Stores 300 Matter Capacity 300 Sight Range 16 Terrain Scan Density 10 Resistance: KI 35 Resistance: TH 35 Resistance: EX 35 Resistance: EM 35 Resistance: I 35 Resistance: S 35 Resistance: P 35 Core Shielding 20 Evasion (%) 55 Targeting Accuracy 5 Offensive Hacking 20 Item Schematics ----------------- None Robot Schematics ------------------ None Fabricated ------------ Nothing Repaired ---------- Nothing Studied --------- None Alien Tech Used ----------------- None Achievements -------------- None Challenges ------------ None Game ------ Seed DisassembledBombardmentCloak Manual? 0 Play Time 00:12:58 Cumulative 39.6 hours Start 2026.09.14 @ 11:52:12 End 2026.09.14 @ 12:07:44 Sessions 1 Manual Loads 0 Difficulty Explorer Special Mode None Game No. 39 Rogue 16 Adventurer 1 Explorer 22 Win Type - Total 0 Types 0/0/0/0/0/0/0/0/0/0 Lore% 21 Gallery% 26 Achievement% 20 Wizard Run 0 Options --------- Layout 1 ASCII 0 Keyboard 0 Movement Numpad Keybinds 0 Fullscreen 1 Font 48/Smallcaps Map View 50x35 Zoom Use 0% Tactical HUD 0 Map Filters NONE Filters NONE Steam 1 RUN: 367817fb-0c0a-4e38-a422-5a34aa10a448